[Event "44th Chess Olympiad Women 2022"]
[Site "Chennai"]
[Date "2022.08.06"]
[Round "8.18"]
[White "Unuk, Laura"]
[Black "Frayna, Janelle Mae"]
[Result "0-1"]
[WhiteElo "2340"]
[BlackElo "2224"]
[Annotator "RC"]
[PlyCount "132"]
[EventDate "2022.??.??"]
[TimeControl "60"]

1. c4 {[%emt 0:00:06]} Nf6 {[%emt 0:01:18]} 2. Nc3 {[%emt 0:00:32]} c5 {
[%emt 0:02:45]} 3. g3 {[%emt 0:02:13]} g6 {[%emt 0:02:17]} 4. Bg2 {[%emt 0:00:
00]} Bg7 {[%emt 0:00:08]} 5. Nf3 {[%emt 0:06:22]} O-O {[%emt 0:01:45]} 6. d4 {
[%emt 0:07:35]} cxd4 {[%emt 0:00:57]} 7. Nxd4 {[%emt 0:00:09]} Nc6 {[%emt 0:00:
00]} 8. O-O {[%emt 0:15:56]} Ng4 {[%emt 0:10:55]} 9. e3 {[%emt 0:06:56]} d6 {
[%emt 0:00:04]} 10. b3 {[%emt 0:02:38]} Nge5 {[%emt 0:08:10]} 11. Bb2 {[%emt 0:
00:00]} Nxd4 {[%emt 0:02:34]} 12. exd4 {[%emt 0:00:56]} Nc6 {[%emt 0:00:04]}
13. Nd5 {[%emt 0:13:51]} e6 {[%emt 0:06:45]} 14. Nf4 {[%emt 0:01:12]} Nxd4 {
[%emt 0:15:21]} 15. Bxd4 {[%emt 0:00:40]} e5 {[%emt 0:00:11]} 16. Nxg6 {
[%emt 0:19:15]} hxg6 {[%emt 0:01:54]} 17. Bb2 {[%emt 0:00:03]} Qc7 {[%emt 0:00:
00]} 18. Qe2 {[%emt 0:00:49]} Bd7 {[%emt 0:02:12]} 19. Rfd1 {[%emt 0:01:20]}
Bc6 {[%emt 0:00:13]} 20. Rd2 {[%emt 0:04:23]} Rfe8 {[%emt 0:01:17]} 21. Rad1 {
[%emt 0:00:39]} Rad8 {[%emt 0:00:12]} 22. Bd5 {[%emt 0:00:19]} e4 {[%emt 0:00:
00]} 23. Bxg7 {[%emt 0:00:53]} Kxg7 {[%emt 0:00:04]} 24. Qe3 {[%emt 0:00:38]}
a6 {[%emt 0:04:12]} 25. h4 {[%emt 0:00:42]} Re5 {[%emt 0:02:37]} 26. Rd4 {
[%emt 0:02:41]} Qe7 {[%emt 0:00:52]} 27. a3 {[%emt 0:04:01]} f5 {[%emt 0:05:48]
} 28. Kg2 {[%emt 0:01:17]} Rd7 {[%emt 0:00:52]} 29. b4 {[%emt 0:00:26]} Rd8 {
[%emt 0:03:47]} 30. R4d2 {[%emt 0:00:09]} Kh7 {[%emt 0:06:12]} 31. Rd4 {
[%emt 0:01:26]} Kg7 {[%emt 0:00:49]} 32. R1d2 {[%emt 0:01:11]} Kh7 {[%emt 0:00:
00]} 33. Kf1 {[%emt 0:01:46]} Kg7 {[%emt 0:01:46]} 34. Rd1 {[%emt 0:00:04]} Ba4
{[%emt 0:01:56]} 35. Re1 {[%emt 0:00:50]} Bc6 {[%emt 0:00:08]} 36. Qd2 {
[%emt 0:00:26]} Be8 {[%emt 0:01:59]} 37. Kg2 {[%emt 0:00:28]} Bc6 {[%emt 0:00:
00]} 38. Qc3 {[%emt 0:00:16]} Kh7 {[%emt 0:00:33]} 39. Qd2 {[%emt 0:00:41]} Kg7
{[%emt 0:00:33]} 40. Kg1 {[%emt 0:00:50]} Be8 {[%emt 0:04:19]} 41. Re3 {
[%emt 0:12:39]} Bc6 {[%emt 0:02:07]} 42. Qd1 {[%emt 0:00:12]} Rd7 {[%emt 0:00:
00]} 43. Re2 {[%emt 0:11:59]} Bxd5 {[%emt 0:02:17]} 44. Rxd5 {[%emt 0:02:27]}
Rxd5 {[%emt 0:00:08]} 45. Qxd5 {[%emt 0:01:23]} Qe5 {[%emt 0:00:08]} 46. Rd2 {
[%emt 0:00:02]} Qxd5 {[%emt 0:05:55]} 47. Rxd5 {[%emt 0:00:05]} Kf6 {[%emt 0:
00:00]} 48. f3 {[%emt 0:00:04]} Ke6 {[%emt 0:11:55]} 49. fxe4 {[%emt 0:00:09]}
fxe4 {[%emt 0:00:03]} 50. Rg5 {[%emt 0:00:18]} Rf7 {[%emt 0:02:27]} 51. Rxg6+ {
[%emt 0:05:46]} Ke5 {[%emt 0:00:01]} 52. Rg5+ {[%emt 0:01:14]} Kd4 {[%emt 0:00:
00]} 53. Rd5+ {[%emt 0:00:34]} Kxc4 {[%emt 0:00:41]} 54. Rxd6 {[%emt 0:00:06]}
e3 {[%emt 0:01:16]} 55. Re6 {[%emt 0:01:19]} Kd3 {[%emt 0:00:06]} 56. h5 {
[%emt 0:00:29]} e2 {[%emt 0:00:20]} 57. Kg2 {[%emt 0:00:29]} Rf1 {[%emt 0:00:
00]} 58. h6 {[%emt 0:00:36]} e1=Q {[%emt 0:00:06]} 59. Rxe1 {[%emt 0:00:03]}
Rxe1 {[%emt 0:00:04]} 60. g4 {[%emt 0:00:50]} Re6 {[%emt 0:00:47]} 61. g5 {
[%emt 0:00:55]} Rg6 {[%emt 0:00:21]} 62. Kg3 {[%emt 0:00:21]} Rxg5+ {[%emt 0:
00:00]} 63. Kh4 {[%emt 0:00:02]} Rg1 {[%emt 0:00:27]} 64. Kh5 {[%emt 0:00:11]}
b5 {[%emt 0:00:50]} 65. h7 {[%emt 0:00:04]} Rh1+ {[%emt 0:00:04]} 66. Kg6 {
[%emt 0:00:04]} Kc4 {[%emt 0:00:05]} 0-1

[Event "44th Chess Olympiad Women 2022"]
[Site "Chennai"]
[Date "2022.08.06"]
[Round "8.19"]
[White "Ayzenberg, Alena"]
[Black "De Seroux, Camille"]
[Result "0-1"]
[WhiteElo "2023"]
[BlackElo "2106"]
[Annotator "NA RC"]
[PlyCount "81"]
[EventDate "2022.??.??"]
[TimeControl "60"]

1. d4 {[%emt 0:00:03]} Nf6 {[%emt 0:00:05]} 2. c4 {[%emt 0:00:06]} e6 {[%emt 0:
00:00]} 3. Nf3 {[%emt 0:00:08]} Bb4+ {[%emt 0:00:07]} 4. Bd2 {[%emt 0:00:13]}
Qe7 {[%emt 0:00:08]} 5. g3 {[%emt 0:00:24]} Nc6 {[%emt 0:00:10]} 6. Bg2 {
[%emt 0:00:32]} Bxd2+ {[%emt 0:00:14]} 7. Nbxd2 {[%emt 0:02:28]} d6 {[%emt 0:
00:00]} 8. O-O {[%emt 0:02:13]} O-O {[%emt 0:00:20]} 9. e4 {[%emt 0:01:52]} e5
{[%emt 0:00:18]} 10. d5 {[%emt 0:01:05]} Nb8 {[%emt 0:00:16]} 11. b4 {[%emt 0:
00:00]} a5 {[%emt 0:01:49]} 12. a3 {[%emt 0:01:01]} Na6 {[%emt 0:00:44]} 13.
Qb3 {[%emt 0:01:59]} c6 {[%emt 0:02:20]} 14. Nh4 {[%emt 0:08:32]} g6 {[%emt 0:
00:00]} 15. Qc3 {[%emt 0:08:07]} cxd5 {[%emt 0:05:09]} 16. exd5 {[%emt 0:02:47]
} axb4 {[%emt 0:05:55]} 17. axb4 {[%emt 0:01:07]} Bd7 {[%emt 0:01:11]} 18. Rfe1
{[%emt 0:03:16]} Nh5 {[%emt 0:27:42]} 19. f4 {[%emt 0:18:54]} Nxf4 {[%emt 0:00:
00]} 20. gxf4 {[%emt 0:00:31]} Qxh4 {[%emt 0:00:14]} 21. fxe5 {[%emt 0:00:57]}
dxe5 {[%emt 0:02:19]} 22. Nf3 {[%emt 0:11:36]} Qf6 {[%emt 0:02:19]} 23. Nxe5 {
[%emt 0:02:21]} Bf5 {[%emt 0:03:33]} 24. c5 {[%emt 0:04:43]} Rae8 {[%emt 0:00:
00]} 25. d6 {[%emt 0:04:36]} Nxb4 {[%emt 0:02:48]} 26. Qxb4 {[%emt 0:07:37]}
Rxe5 {[%emt 0:00:15]} 27. Rxe5 {[%emt 0:00:38]} Qxe5 {[%emt 0:00:07]} 28. Re1 {
[%emt 0:00:22]} Qf6 {[%emt 0:01:08]} 29. Qf4 {[%emt 0:07:51]} Qc3 {[%emt 0:00:
00]} 30. Qe5 {[%emt 0:00:51]} Qb4 {[%emt 0:00:58]} 31. Rc1 {[%emt 0:03:01]} Ra8
{[%emt 0:01:58]} 32. Qd5 {[%emt 0:01:14]} Re8 {[%emt 0:01:30]} 33. Qd1 {
[%emt 0:01:35]} Qb2 {[%emt 0:00:44]} 34. Bf3 {[%emt 0:00:45]} Re3 {[%emt 0:00:
00]} 35. Bd5 {[%emt 0:01:27]} Rd3 {[%emt 0:00:24]} 36. Bxf7+ {[%emt 0:00:26]}
Kxf7 {[%emt 0:00:17]} 37. Qf1 {[%emt 0:00:29]} Kg7 {[%emt 0:00:46]} 38. Kh1 {
[%emt 0:00:37]} Rd2 {[%emt 0:00:34]} 39. Re1 {[%emt 0:00:12]} Qd4 {[%emt 0:00:
00]} 40. Re7+ {[%emt 0:00:41]} Kf8 {[%emt 0:00:20]} 41. Qf3 {[%emt 0:12:44]}
0-1

[Event "44th Chess Olympiad Women 2022"]
[Site "Chennai"]
[Date "2022.08.06"]
[Round "8.19"]
[White "Georgescu, Lena"]
[Black "Machlik, Monika"]
[Result "1/2-1/2"]
[WhiteElo "2279"]
[BlackElo "2111"]
[Annotator "NA RC"]
[PlyCount "59"]
[EventDate "2022.??.??"]
[TimeControl "60"]

1. e4 {[%emt 0:00:05]} c6 {[%emt 0:00:04]} 2. d4 {[%emt 0:00:04]} d5 {[%emt 0:
00:00]} 3. e5 {[%emt 0:00:03]} Bf5 {[%emt 0:00:18]} 4. h4 {[%emt 0:00:05]} h5 {
[%emt 0:00:07]} 5. Bd3 {[%emt 0:00:03]} Bxd3 {[%emt 0:00:05]} 6. Qxd3 {[%emt 0:
00:00]} Qa5+ {[%emt 0:00:34]} 7. Nd2 {[%emt 0:00:05]} e6 {[%emt 0:00:12]} 8.
Ngf3 {[%emt 0:00:10]} Nh6 {[%emt 0:03:08]} 9. O-O {[%emt 0:00:19]} Nf5 {
[%emt 0:00:48]} 10. Nb3 {[%emt 0:00:48]} Qa6 {[%emt 0:01:15]} 11. Qd1 {[%emt 0:
00:00]} b6 {[%emt 0:00:51]} 12. Bg5 {[%emt 0:00:24]} c5 {[%emt 0:17:30]} 13.
dxc5 {[%emt 0:00:13]} bxc5 {[%emt 0:08:14]} 14. Nbd2 {[%emt 0:00:16]} Nd7 {
[%emt 0:12:54]} 15. c4 {[%emt 0:08:28]} d4 {[%emt 0:06:29]} 16. Qe2 {[%emt 0:
00:00]} f6 {[%emt 0:09:02]} 17. Bf4 {[%emt 0:08:33]} Kf7 {[%emt 0:02:41]} 18.
Ne4 {[%emt 0:03:43]} Be7 {[%emt 0:02:28]} 19. g3 {[%emt 0:18:25]} Nf8 {[%emt 0:
00:00]} 20. exf6 {[%emt 0:09:26]} gxf6 {[%emt 0:00:53]} 21. Rfe1 {[%emt 0:00:
00]} Rd8 {[%emt 0:02:58]} 22. Rad1 {[%emt 0:03:09]} Ng6 {[%emt 0:04:44]} 23.
Bc1 {[%emt 0:02:49]} Rd7 {[%emt 0:04:48]} 24. b3 {[%emt 0:00:43]} Rhd8 {
[%emt 0:00:34]} 25. Rd3 {[%emt 0:00:42]} Qc6 {[%emt 0:01:01]} 26. Bd2 {[%emt 0:
00:00]} Rg8 {[%emt 0:01:05]} 27. Kh2 {[%emt 0:01:07]} Rh8 {[%emt 0:01:17]} 28.
Kg1 {[%emt 0:05:02]} Rg8 {[%emt 0:02:08]} 29. Kh2 {[%emt 0:00:57]} Rh8 {
[%emt 0:00:12]} 30. Kg1 {[%emt 0:05:02]} 1/2-1/2

[Event "44th Chess Olympiad Women 2022"]
[Site "Chennai"]
[Date "2022.08.06"]
[Round "8.19"]
[White "Machlik, Edit"]
[Black "Hakimifard, Ghazal"]
[Result "0-1"]
[WhiteElo "2084"]
[BlackElo "2296"]
[Annotator "NA RC"]
[PlyCount "54"]
[EventDate "2022.??.??"]
[TimeControl "60"]

1. d4 {[%emt 0:00:02]} Nf6 {[%emt 0:00:07]} 2. c4 {[%emt 0:00:04]} e6 {[%emt 0:
00:00]} 3. Nc3 {[%emt 0:00:05]} Bb4 {[%emt 0:00:06]} 4. Qc2 {[%emt 0:00:05]} d6
{[%emt 0:00:32]} 5. a3 {[%emt 0:02:22]} Bxc3+ {[%emt 0:00:07]} 6. Qxc3 {
[%emt 0:00:04]} O-O {[%emt 0:00:24]} 7. f3 {[%emt 0:00:56]} Nbd7 {[%emt 0:00:
00]} 8. e4 {[%emt 0:10:18]} e5 {[%emt 0:06:36]} 9. d5 {[%emt 0:00:42]} c6 {
[%emt 0:04:25]} 10. Be3 {[%emt 0:06:52]} cxd5 {[%emt 0:07:57]} 11. cxd5 {
[%emt 0:01:05]} Nb6 {[%emt 0:04:20]} 12. Bd3 {[%emt 0:07:10]} Nh5 {[%emt 0:00:
00]} 13. Ne2 {[%emt 0:08:21]} Qh4+ {[%emt 0:07:45]} 14. g3 {[%emt 0:06:39]} Qe7
{[%emt 0:06:07]} 15. g4 {[%emt 0:03:21]} Nf4 {[%emt 0:06:37]} 16. Bxf4 {
[%emt 0:29:15]} exf4 {[%emt 0:00:02]} 17. Nxf4 {[%emt 0:02:49]} f5 {[%emt 0:00:
00]} 18. O-O {[%emt 0:12:05]} fxe4 {[%emt 0:01:10]} 19. fxe4 {[%emt 0:01:10]}
Bxg4 {[%emt 0:00:16]} 20. Ng2 {[%emt 0:01:54]} Nd7 {[%emt 0:02:40]} 21. Qc7 {
[%emt 0:01:36]} Qe5 {[%emt 0:00:53]} 22. Kh1 {[%emt 0:01:47]} Nc5 {[%emt 0:00:
00]} 23. Bc2 {[%emt 0:01:02]} Bf3 {[%emt 0:03:14]} 24. Rae1 {[%emt 0:01:04]}
Rac8 {[%emt 0:01:03]} 25. Qxc8 {[%emt 0:01:27]} Bxg2+ {[%emt 0:00:13]} 26. Kxg2
{[%emt 0:00:02]} Rxc8 {[%emt 0:00:06]} 27. Rf2 {[%emt 0:00:11]} Rf8 {[%emt 0:
00:00]} 0-1

[Event "44th Chess Olympiad Women 2022"]
[Site "Chennai"]
[Date "2022.08.06"]
[Round "8.19"]
[White "Stoeri, Laura"]
[Black "Stanford, Sheila Barth"]
[Result "1/2-1/2"]
[WhiteElo "2084"]
[BlackElo "2097"]
[Annotator "NA RC"]
[PlyCount "84"]
[EventDate "2022.??.??"]
[TimeControl "60"]

1. e4 {[%emt 0:00:03]} c5 {[%emt 0:00:19]} 2. Nf3 {[%emt 0:00:05]} e6 {[%emt 0:
00:00]} 3. d4 {[%emt 0:00:06]} cxd4 {[%emt 0:00:05]} 4. Nxd4 {[%emt 0:00:05]}
Nc6 {[%emt 0:00:19]} 5. Nc3 {[%emt 0:00:50]} Qc7 {[%emt 0:00:44]} 6. Be3 {
[%emt 0:00:21]} a6 {[%emt 0:00:32]} 7. g4 {[%emt 0:00:56]} b5 {[%emt 0:07:03]}
8. Nxc6 {[%emt 0:00:14]} Qxc6 {[%emt 0:01:50]} 9. Qd2 {[%emt 0:00:41]} Bb4 {
[%emt 0:13:41]} 10. Qd4 {[%emt 0:19:33]} Bxc3+ {[%emt 0:08:59]} 11. bxc3 {
[%emt 0:00:06]} Ne7 {[%emt 0:00:14]} 12. Qxg7 {[%emt 0:04:52]} Rg8 {[%emt 0:00:
00]} 13. Qd4 {[%emt 0:00:26]} Rxg4 {[%emt 0:04:55]} 14. f3 {[%emt 0:02:54]} Rg8
{[%emt 0:02:57]} 15. O-O-O {[%emt 0:24:09]} Bb7 {[%emt 0:01:34]} 16. Rg1 {
[%emt 0:04:55]} Rxg1 {[%emt 0:03:08]} 17. Bxg1 {[%emt 0:00:04]} O-O-O {[%emt 0:
00:00]} 18. c4 {[%emt 0:05:22]} b4 {[%emt 0:15:47]} 19. Bf2 {[%emt 0:04:56]} f5
{[%emt 0:04:52]} 20. Bh4 {[%emt 0:02:00]} e5 {[%emt 0:02:17]} 21. Qd2 {[%emt 0:
00:00]} Qc5 {[%emt 0:00:59]} 22. exf5 {[%emt 0:18:41]} Bxf3 {[%emt 0:01:01]}
23. Be2 {[%emt 0:00:12]} Bc6 {[%emt 0:07:53]} 24. Kb1 {[%emt 0:03:47]} Rf8 {
[%emt 0:01:53]} 25. f6 {[%emt 0:00:51]} Nf5 {[%emt 0:00:37]} 26. Bg5 {[%emt 0:
00:00]} h6 {[%emt 0:01:27]} 27. Bg4 {[%emt 0:00:40]} Nd4 {[%emt 0:02:30]} 28.
Bxh6 {[%emt 0:02:13]} Rxf6 {[%emt 0:00:06]} 29. Be3 {[%emt 0:00:16]} Rd6 {
[%emt 0:09:37]} 30. Qd3 {[%emt 0:00:46]} Ba4 {[%emt 0:00:32]} 31. Bxd4 {
[%emt 0:00:28]} Rxd4 {[%emt 0:00:12]} 32. Qg6 {[%emt 0:00:34]} Qxc4 {[%emt 0:
00:00]} 33. Rxd4 {[%emt 0:00:05]} exd4 {[%emt 0:00:30]} 34. Qe8+ {[%emt 0:00:
00]} Kc7 {[%emt 0:00:21]} 35. Qe5+ {[%emt 0:00:04]} Kb7 {[%emt 0:01:47]} 36.
Bf3+ {[%emt 0:00:59]} Bc6 {[%emt 0:00:05]} 37. Be2 {[%emt 0:00:59]} Qc3 {
[%emt 0:00:53]} 38. Bd3 {[%emt 0:00:31]} a5 {[%emt 0:00:43]} 39. Qxa5 {[%emt 0:
00:00]} Qe1+ {[%emt 0:00:06]} 40. Kb2 {[%emt 0:00:02]} Qc3+ {[%emt 0:00:13]}
41. Kb1 {[%emt 0:30:21]} Qe1+ {[%emt 0:30:42]} 42. Kb2 {[%emt 0:00:14]} Qc3+ {
[%emt 0:00:02]} 1/2-1/2

[Event "44th Chess Olympiad Women 2022"]
[Site "Chennai"]
[Date "2022.08.06"]
[Round "8.20"]
[White "Berzina, Ilze"]
[Black "Sinitsina, Anastassia"]
[Result "0-1"]
[WhiteElo "2141"]
[BlackElo "2175"]
[Annotator "RC"]
[PlyCount "112"]
[EventDate "2022.??.??"]
[TimeControl "60"]

1. e4 {[%emt 0:00:03]} e5 {[%emt 0:00:06]} 2. Nf3 {[%emt 0:00:08]} Nc6 {
[%emt 0:00:04]} 3. Bb5 {[%emt 0:00:11]} a6 {[%emt 0:00:07]} 4. Ba4 {[%emt 0:00:
00]} Nf6 {[%emt 0:00:06]} 5. O-O {[%emt 0:00:21]} Be7 {[%emt 0:00:23]} 6. Re1 {
[%emt 0:00:32]} b5 {[%emt 0:00:22]} 7. Bb3 {[%emt 0:00:07]} O-O {[%emt 0:00:14]
} 8. a4 {[%emt 0:09:19]} Bb7 {[%emt 0:04:41]} 9. d3 {[%emt 0:02:42]} d6 {
[%emt 0:00:30]} 10. Bd2 {[%emt 0:03:12]} b4 {[%emt 0:01:17]} 11. a5 {[%emt 0:
00:00]} Rb8 {[%emt 0:05:40]} 12. Bg5 {[%emt 0:15:36]} Nd7 {[%emt 0:08:21]} 13.
Bxe7 {[%emt 0:06:06]} Qxe7 {[%emt 0:01:31]} 14. Nbd2 {[%emt 0:00:34]} Nc5 {
[%emt 0:01:21]} 15. Bc4 {[%emt 0:03:52]} Bc8 {[%emt 0:01:21]} 16. Nf1 {[%emt 0:
00:00]} Be6 {[%emt 0:03:38]} 17. Ne3 {[%emt 0:01:13]} Bxc4 {[%emt 0:02:47]} 18.
dxc4 {[%emt 0:05:35]} Qd8 {[%emt 0:04:51]} 19. Nf5 {[%emt 0:14:21]} Qf6 {
[%emt 0:05:24]} 20. Ne3 {[%emt 0:07:54]} Ne7 {[%emt 0:03:04]} 21. Nd5 {[%emt 0:
00:00]} Nxd5 {[%emt 0:00:10]} 22. cxd5 {[%emt 0:00:55]} Qh6 {[%emt 0:08:25]}
23. Qd2 {[%emt 0:03:02]} Qh5 {[%emt 0:01:24]} 24. Qg5 {[%emt 0:02:56]} Qxg5 {
[%emt 0:00:12]} 25. Nxg5 {[%emt 0:00:02]} b3 {[%emt 0:04:41]} 26. c3 {[%emt 0:
00:00]} Rb5 {[%emt 0:00:27]} 27. Nf3 {[%emt 0:01:25]} f5 {[%emt 0:02:09]} 28.
Nd2 {[%emt 0:05:41]} fxe4 {[%emt 0:02:14]} 29. c4 {[%emt 0:00:23]} Rb4 {
[%emt 0:00:11]} 30. Nxe4 {[%emt 0:01:30]} Nd3 {[%emt 0:02:07]} 31. Re2 {
[%emt 0:00:39]} Rxc4 {[%emt 0:00:32]} 32. f3 {[%emt 0:01:12]} Rb8 {[%emt 0:00:
00]} 33. Nf2 {[%emt 0:00:43]} Nf4 {[%emt 0:00:38]} 34. Rd2 {[%emt 0:00:10]} Rc2
{[%emt 0:00:43]} 35. Rad1 {[%emt 0:00:12]} Rb5 {[%emt 0:00:32]} 36. g3 {
[%emt 0:00:14]} Rxd2 {[%emt 0:00:57]} 37. Rxd2 {[%emt 0:00:05]} Nxd5 {[%emt 0:
00:00]} 38. Rd3 {[%emt 0:00:15]} Kf7 {[%emt 0:04:18]} 39. Ne4 {[%emt 0:00:18]}
Nf6 {[%emt 0:00:24]} 40. Rc3 {[%emt 0:02:04]} Nxe4 {[%emt 0:06:44]} 41. Rxc7+ {
[%emt 0:30:11]} Kf6 {[%emt 0:30:21]} 42. fxe4 {[%emt 0:00:04]} Rxa5 {[%emt 0:
00:00]} 43. Rc3 {[%emt 0:02:02]} Ra4 {[%emt 0:00:55]} 44. Rxb3 {[%emt 0:00:27]}
Rxe4 {[%emt 0:00:06]} 45. Rb6 {[%emt 0:00:00]} Rd4 {[%emt 0:00:00]} 46. Rxa6 {
[%emt 0:00:00]} Rd2 {[%emt 0:00:00]} 47. b4 {[%emt 0:00:00]} g6 {[%emt 0:00:00]
} 48. b5 {[%emt 0:00:00]} Kf5 {[%emt 0:00:00]} 49. b6 {[%emt 0:00:00]} Rb2 {
[%emt 0:00:00]} 50. b7 {[%emt 0:00:00]} d5 {[%emt 0:00:00]} 51. Rd6 {[%emt 0:
00:00]} d4 {[%emt 0:00:00]} 52. Rd7 {[%emt 0:00:00]} Ke4 {[%emt 0:00:00]} 53.
Rxh7 {[%emt 0:00:00]} d3 {[%emt 0:00:00]} 54. Rd7 {[%emt 0:00:00]} Ke3 {
[%emt 0:00:00]} 55. h4 {[%emt 0:00:00]} d2 {[%emt 0:00:00]} 56. g4 {[%emt 0:00:
00]} Rxb7 {[%emt 0:00:00]} 0-1

[Event "44th Chess Olympiad Women 2022"]
[Site "Chennai"]
[Date "2022.08.06"]
[Round "8.20"]
[White "Maklakova, Nellija"]
[Black "Blokhin, Sofia"]
[Result "1/2-1/2"]
[WhiteElo "1819"]
[BlackElo "1996"]
[Annotator "NA RC"]
[PlyCount "92"]
[EventDate "2022.??.??"]
[TimeControl "60"]

1. Nf3 {[%emt 0:00:30]} c5 {[%emt 0:00:07]} 2. g3 {[%emt 0:00:24]} Nf6 {
[%emt 0:00:23]} 3. Bg2 {[%emt 0:00:16]} d5 {[%emt 0:01:11]} 4. c4 {[%emt 0:00:
00]} Nc6 {[%emt 0:11:06]} 5. cxd5 {[%emt 0:01:17]} Nxd5 {[%emt 0:00:11]} 6. Nc3
{[%emt 0:00:04]} Nc7 {[%emt 0:02:49]} 7. O-O {[%emt 0:03:10]} e5 {[%emt 0:00:
00]} 8. d3 {[%emt 0:01:02]} Be7 {[%emt 0:00:22]} 9. Be3 {[%emt 0:03:28]} O-O {
[%emt 0:04:56]} 10. Rc1 {[%emt 0:03:37]} Be6 {[%emt 0:08:08]} 11. Ne4 {[%emt 0:
00:00]} b6 {[%emt 0:01:19]} 12. Qa4 {[%emt 0:06:26]} Nd4 {[%emt 0:08:48]} 13.
Bxd4 {[%emt 0:12:15]} exd4 {[%emt 0:00:10]} 14. b4 {[%emt 0:08:48]} f5 {
[%emt 0:10:43]} 15. Ned2 {[%emt 0:03:26]} Nd5 {[%emt 0:03:34]} 16. Qc6 {
[%emt 0:08:29]} Qc8 {[%emt 0:14:48]} 17. Nxd4 {[%emt 0:05:31]} cxd4 {[%emt 0:
00:00]} 18. Bxd5 {[%emt 0:01:19]} Qxc6 {[%emt 0:00:08]} 19. Bxc6 {[%emt 0:00:
00]} Rac8 {[%emt 0:02:00]} 20. b5 {[%emt 0:02:00]} Ba3 {[%emt 0:03:57]} 21. Rb1
{[%emt 0:02:45]} Be7 {[%emt 0:02:48]} 22. a4 {[%emt 0:00:46]} a5 {[%emt 0:00:
00]} 23. Nf3 {[%emt 0:03:07]} Bf6 {[%emt 0:02:14]} 24. h4 {[%emt 0:00:00]} h6 {
[%emt 0:00:34]} 25. Kg2 {[%emt 0:00:00]} g5 {[%emt 0:01:28]} 26. hxg5 {[%emt 0:
00:00]} hxg5 {[%emt 0:00:05]} 27. Nd2 {[%emt 0:01:56]} g4 {[%emt 0:01:29]} 28.
Nc4 {[%emt 0:02:37]} Bxc4 {[%emt 0:00:30]} 29. dxc4 {[%emt 0:00:05]} Be7 {
[%emt 0:01:20]} 30. Rbd1 {[%emt 0:03:05]} Bc5 {[%emt 0:00:24]} 31. Rd3 {
[%emt 0:04:53]} Rcd8 {[%emt 0:01:48]} 32. Bd5+ {[%emt 0:00:25]} Kg7 {[%emt 0:
00:00]} 33. Rh1 {[%emt 0:02:10]} Rde8 {[%emt 0:01:10]} 34. Rd2 {[%emt 0:00:28]}
Kg6 {[%emt 0:01:48]} 35. Bc6 {[%emt 0:00:50]} Re7 {[%emt 0:01:26]} 36. Rh4 {
[%emt 0:03:18]} Kg5 {[%emt 0:00:35]} 37. Rh1 {[%emt 0:02:52]} f4 {[%emt 0:00:
00]} 38. gxf4+ {[%emt 0:00:23]} Rxf4 {[%emt 0:00:19]} 39. Rh8 {[%emt 0:01:56]}
Ref7 {[%emt 0:06:21]} 40. f3 {[%emt 0:02:16]} gxf3+ {[%emt 0:00:43]} 41. exf3 {
[%emt 0:31:35]} Rg7 {[%emt 0:32:45]} 42. Kf1 {[%emt 0:01:33]} Kf6 {[%emt 0:00:
00]} 43. Rdh2 {[%emt 0:01:31]} d3 {[%emt 0:00:00]} 44. Ke1 {[%emt 0:00:00]}
Bb4+ {[%emt 0:00:00]} 45. Kf2 {[%emt 0:00:00]} Bc5+ {[%emt 0:00:00]} 46. Ke1 {
[%emt 0:00:00]} Ke5 {[%emt 0:00:43]} 1/2-1/2

[Event "44th Chess Olympiad Women 2022"]
[Site "Chennai"]
[Date "2022.08.06"]
[Round "8.20"]
[White "Narva, Mai"]
[Black "Rogule, Laura"]
[Result "1-0"]
[WhiteElo "2385"]
[BlackElo "2292"]
[Annotator "TA"]
[PlyCount "57"]
[EventDate "2022.??.??"]
[TimeControl "60"]

{[%evp 12,57,27,-4,-3,-7,66,65,70,87,100,93,109,98,119,88,133,137,184,167,168,
175,175,186,211,201,260,223,206,211,195,171,247,219,392,378,625,627,631,630,
1310,1226,2298,1551,29989,29990,29989,1029]} 1. e4 {[%emt 0:00:04]} c5 {
[%emt 0:00:06]} 2. Nf3 {[%emt 0:00:10][%cal Yg1f3,Yf3d4,Yd4c2]} e6 {[%emt 0:00:
10]} 3. d4 {[%emt 0:00:13]} cxd4 {[%emt 0:00:07]} 4. Nxd4 {[%emt 0:00:00]} a6 {
[%emt 0:00:28]} 5. c4 {[%emt 0:01:38]} Nf6 {[%emt 0:00:30]} 6. Nc3 {[%emt 0:00:
50]} Bb4 {[%emt 0:00:49]} 7. Nc2 {[%emt 0:02:59] 7.Qd3 is a critical line.}
Bxc3+ {[%emt 0:02:33] B41: Sicilian: Kan Variation: 5 c4.} 8. bxc3 {[%emt 0:00:
08]} O-O {[%emt 0:13:46] [#]} (8... Qa5 $11) 9. e5 $146 {[%emt 0:07:58]} ({
Predecessor:} 9. Ba3 Re8 10. e5 Ne4 11. Bd3 f5 12. Bxe4 fxe4 13. Qe2 Qa5 14.
O-O Qxe5 15. f3 {0-1 (50) Bakalar,J (2120)-Jedlicka,A (2301) Tatranske Zruby
2009}) 9... Ne8 {[%emt 0:14:21] White is slightly better.} 10. Ba3 {[%emt 0:29:
32] White is more active.} Qg5 {[%emt 0:07:39]} 11. Qe2 {[%emt 0:05:12]} d6 {
[%emt 0:11:27]} 12. exd6 {[%emt 0:02:49]} (12. Bxd6 Nxd6 13. exd6 Rd8 $11)
12... Bd7 {[%emt 0:01:50]} 13. Rb1 {[%emt 0:08:04]} b5 {[%emt 0:06:43]} 14. Qe3
{[%emt 0:05:34]} (14. cxb5 axb5 15. Qd2 Qxd2+ 16. Kxd2 Nf6 $14) 14... Qd8 {
[%emt 0:08:13]} (14... Qxe3+ $16 {was called for.} 15. Nxe3 (15. fxe3 Nf6 $14)
15... Nf6) 15. Bd3 $18 {[%emt 0:07:34]} Nf6 {[%emt 0:05:25] Against Qe4} 16.
O-O {[%emt 0:03:51]} bxc4 {[%emt 0:03:41]} 17. Bxc4 {[%emt 0:00:00]} Qc8 {
[%emt 0:01:38]} 18. Bd3 {[%emt 0:01:15]} Nd5 {[%emt 0:04:10]} 19. Qg3 {[%emt 0:
01:45] aiming for c4.} Bb5 {[%emt 0:04:35]} 20. d7 $40 {[%emt 0:00:00] Black
is in trouble.} (20. Bxb5 $6 axb5 21. d7 (21. Rxb5 Nxc3 22. Re5 Qc4 $11) 21...
Nxd7) 20... Nxd7 {[%emt 0:00:47]} 21. Bxf8 {[%emt 0:00:00] Chess con chili.} (
21. Bxb5 axb5 22. Bxf8 (22. Rxb5 $2 Nxc3 23. Re5 Nxe5 $19) 22... Nxf8 $16)
21... Kxf8 {[%emt 0:06:03]} (21... Nxf8 $142 22. Nb4 (22. Bxb5 axb5 23. Qf3
Nxc3 $16) 22... Nxc3) 22. Qd6+ {[%emt 0:03:29]} ({Much less strong is} 22. Bxb5
axb5 23. Nd4 (23. Rxb5 Nxc3 24. Qd6+ Kg8 $16) 23... Kg8 24. Nxb5 (24. Rxb5 Nxc3
25. Rb3 Ne4 $18) 24... h6) 22... Kg8 $2 {[%emt 0:01:27] [#]} (22... Ke8 {
keeps fighting.}) 23. c4 {[%emt 0:02:34]} Bxc4 {[%emt 0:01:36]} (23... Nc5 24.
Rxb5 (24. cxd5 Bxd3 25. dxe6 Bxf1 $18) 24... Nxd3) 24. Bxc4 {[%emt 0:00:12]}
Qxc4 {[%emt 0:00:06]} 25. Qxd7 {[%emt 0:00:38]} Qxc2 {[%emt 0:00:00]} 26. Rfc1
{[%emt 0:00:58]} Nf6 {[%emt 0:01:22]} 27. Qb7 {[%emt 0:00:33]} Qe4 {[%emt 0:00:
44]} 28. Rc8+ {[%emt 0:00:17]} Ne8 {[%emt 0:00:03]} 29. Rxe8+ {[%emt 0:00:19]
White took control after the opening. Weighted Error Value: White=0.07 
(flawless) /Black=0.78} (29. Rxa8 $142 Qa4 30. Qxa6 Qd7 31. Qb7 Qa4 32. Rxa4 h5
33. Ra8 g6 34. Rxe8+ Kg7 35. Qe7 h4 36. Rbb8 h3 37. Rg8+ Kh7 38. Qh4#) 1-0